[Event "Titled Tuesday Blitz May 9 Early 2023"]
[White "Wadsworth, Matthew J"]
[Black "Zampronha, Wladimir Camilo"]
[WhiteFideId "415804"]
[BlackFideId "2103087"]
[WhiteElo "2347"]
[BlackElo "2176"]
[Result "1-0"]
[Round "01"]
[TimeControl "180+2"]
[Date "2023.05.09"]
[WhiteClock "0:00:07"]
[BlackClock "0:00:00"]

1. Nc3 {[%clk 0:02:56]}  c5 {[%clk 0:02:54]} 2. e4 {[%clk 0:02:55]}  Nc6 {[%clk 0:02:53]} 3. Bb5 {[%clk 0:02:55]}  Nd4 {[%clk 0:02:51]} 4. Bc4 {[%clk 0:02:55]}  e6 {[%clk 0:02:51]} 5. Nf3 {[%clk 0:02:52]}  a6 {[%clk 0:02:45]} 6. a4 {[%clk 0:02:51]}  g6 {[%clk 0:02:36]} 7. d3 {[%clk 0:02:48]}  Bg7 {[%clk 0:02:36]} 8. O-O {[%clk 0:02:41]}  Ne7 {[%clk 0:02:36]} 9. Re1 {[%clk 0:02:33]}  d6 {[%clk 0:02:34]} 10. Nxd4 {[%clk 0:02:25]}  cxd4 {[%clk 0:02:33]} 11. Ne2 {[%clk 0:02:25]}  O-O {[%clk 0:02:34]} 12. a5 {[%clk 0:02:19]}  Bd7 {[%clk 0:02:29]} 13. Bd2 {[%clk 0:02:09]}  Bc6 {[%clk 0:02:25]} 14. Bb4 {[%clk 0:02:02]}  Re8 {[%clk 0:02:21]} 15. Ng3 {[%clk 0:01:49]}  Rc8 {[%clk 0:02:21]} 16. h4 {[%clk 0:01:38]}  d5 {[%clk 0:02:16]} 17. Bxe7 {[%clk 0:01:35]}  Rxe7 {[%clk 0:02:14]} 18. exd5 {[%clk 0:01:34]}  Bxd5 {[%clk 0:02:06]} 19. b3 {[%clk 0:01:34]}  Rd7 {[%clk 0:01:40]} 20. h5 {[%clk 0:01:31]}  Qh4 {[%clk 0:01:40]} 21. Ra4 {[%clk 0:01:06]}  Bxc4 {[%clk 0:01:27]} 22. Rxc4 {[%clk 0:01:01]}  Rxc4 {[%clk 0:01:26]} 23. bxc4 {[%clk 0:01:01]}  Bf8 {[%clk 0:01:15]} 24. hxg6 {[%clk 0:00:52]}  hxg6 {[%clk 0:01:14]} 25. Re4 {[%clk 0:00:52]}  Qd8 {[%clk 0:01:11]} 26. Qa1 {[%clk 0:00:49]}  Bb4 {[%clk 0:01:07]} 27. Ne2 {[%clk 0:00:39]}  Qxa5 {[%clk 0:01:05]} 28. Qd1 {[%clk 0:00:28]}  Qd8 {[%clk 0:00:52]} 29. Nf4 {[%clk 0:00:25]}  Qg5 {[%clk 0:00:45]} 30. Qf3 {[%clk 0:00:15]}  Bd2 {[%clk 0:00:28]} 31. Nh3 {[%clk 0:00:15]}  Qe7 {[%clk 0:00:23]} 32. Qg4 {[%clk 0:00:10]}  Bh6 {[%clk 0:00:22]} 33. Rxd4 {[%clk 0:00:10]}  Rxd4 {[%clk 0:00:22]} 34. Qxd4 {[%clk 0:00:11]}  Qb4 {[%clk 0:00:20]} 35. Qd8+ {[%clk 0:00:10]}  Bf8 {[%clk 0:00:20]} 36. Ng5 {[%clk 0:00:08]}  Qe1+ {[%clk 0:00:19]} 37. Kh2 {[%clk 0:00:09]}  Qe5+ {[%clk 0:00:20]} 38. Kg1 {[%clk 0:00:06]}  Qe1+ {[%clk 0:00:18]} 39. Kh2 {[%clk 0:00:07]}  Qe5+ {[%clk 0:00:19]} 40. g3 {[%clk 0:00:07]}  Qf5 {[%clk 0:00:14]} 41. Ne4 {[%clk 0:00:07]}  Kg7 {[%clk 0:00:13]} 42. Qd7 {[%clk 0:00:07]}  Bb4 {[%clk 0:00:12]} 43. Qxb7 {[%clk 0:00:07]}  Qh5+ {[%clk 0:00:12]} 44. Kg2 {[%clk 0:00:07]}  Be1 {[%clk 0:00:09]} 45. Qxa6 {[%clk 0:00:07]}  Qf5 {[%clk 0:00:09]} 46. Qa7 {[%clk 0:00:07]}  Bb4 {[%clk 0:00:07]} 47. Qd4+ {[%clk 0:00:07]}  Kg8 {[%clk 0:00:00]} 48. c5 {[%clk 0:00:07]} 1-0


[Site "https://www.chess.com"]

[Event "Titled Tuesday Blitz May 9 Early 2023"]
[White "Ankerst, Mihael"]
[Black "Shaik Sumer Arsh"]
[WhiteFideId "14602369"]
[BlackFideId "45020000"]
[WhiteElo "2311"]
[BlackElo "2350"]
[Result "1-0"]
[Round "01"]
[TimeControl "180+2"]
[Date "2023.05.09"]
[WhiteClock "0:00:22"]
[BlackClock "0:01:15"]

1. e4 {[%clk 0:03:00]}  c5 {[%clk 0:02:45]} 2. Nf3 {[%clk 0:02:59]}  d6 {[%clk 0:02:15]} 3. d4 {[%clk 0:02:59]}  cxd4 {[%clk 0:02:16]} 4. Nxd4 {[%clk 0:02:59]}  Nf6 {[%clk 0:02:15]} 5. Nc3 {[%clk 0:02:59]}  a6 {[%clk 0:01:57]} 6. Bc4 {[%clk 0:02:58]}  e6 {[%clk 0:01:56]} 7. Bb3 {[%clk 0:02:58]}  Be7 {[%clk 0:01:56]} 8. g4 {[%clk 0:02:57]}  Nfd7 {[%clk 0:01:55]} 9. Be3 {[%clk 0:02:54]}  Nc6 {[%clk 0:01:42]} 10. Bxe6 {[%clk 0:02:54]}  Nxd4 {[%clk 0:01:37]} 11. Bxd7+ {[%clk 0:02:53]}  Qxd7 {[%clk 0:01:38]} 12. Bxd4 {[%clk 0:02:33]}  Qxg4 {[%clk 0:01:38]} 13. Qxg4 {[%clk 0:02:23]}  Bxg4 {[%clk 0:01:39]} 14. Rg1 {[%clk 0:02:23]}  Be6 {[%clk 0:01:34]} 15. Rxg7 {[%clk 0:02:20]}  O-O-O {[%clk 0:01:32]} 16. O-O-O {[%clk 0:02:17]}  Rhg8 {[%clk 0:01:30]} 17. Rdg1 {[%clk 0:02:14]}  Rxg7 {[%clk 0:01:31]} 18. Rxg7 {[%clk 0:02:14]}  h6 {[%clk 0:01:32]} 19. Rh7 {[%clk 0:02:14]}  Rg8 {[%clk 0:01:30]} 20. Rh8 {[%clk 0:02:14]}  Rxh8 {[%clk 0:01:30]} 21. Bxh8 {[%clk 0:02:14]}  Bg5+ {[%clk 0:01:31]} 22. Kd1 {[%clk 0:02:14]}  Bf4 {[%clk 0:01:32]} 23. Bg7 {[%clk 0:01:52]}  h5 {[%clk 0:01:30]} 24. h4 {[%clk 0:01:52]}  Bg4+ {[%clk 0:01:29]} 25. Ke1 {[%clk 0:01:36]}  b5 {[%clk 0:01:29]} 26. Nd5 {[%clk 0:01:36]}  Bc1 {[%clk 0:01:29]} 27. Nb4 {[%clk 0:01:15]}  a5 {[%clk 0:01:25]} 28. Nd3 {[%clk 0:01:15]}  Bf3 {[%clk 0:01:20]} 29. Nxc1 {[%clk 0:01:11]}  Bxe4 {[%clk 0:01:21]} 30. c3 {[%clk 0:01:08]}  Kd7 {[%clk 0:01:19]} 31. Kd2 {[%clk 0:01:06]}  Bd5 {[%clk 0:01:19]} 32. a3 {[%clk 0:01:06]}  Bc4 {[%clk 0:01:18]} 33. Ke3 {[%clk 0:01:05]}  Ke6 {[%clk 0:01:18]} 34. Kd4 {[%clk 0:01:05]}  Kf5 {[%clk 0:01:18]} 35. Bf8 {[%clk 0:01:00]}  a4 {[%clk 0:01:13]} 36. Bxd6 {[%clk 0:00:59]}  Kg4 {[%clk 0:01:14]} 37. Bg3 {[%clk 0:00:52]}  f5 {[%clk 0:01:14]} 38. Nd3 {[%clk 0:00:47]}  Bxd3 {[%clk 0:01:09]} 39. Kxd3 {[%clk 0:00:47]}  f4 {[%clk 0:01:10]} 40. Bh2 {[%clk 0:00:47]}  Kxh4 {[%clk 0:01:09]} 41. Bxf4 {[%clk 0:00:46]}  Kg4 {[%clk 0:01:10]} 42. Ke4 {[%clk 0:00:45]}  h4 {[%clk 0:01:11]} 43. f3+ {[%clk 0:00:44]}  Kh3 {[%clk 0:01:11]} 44. Bg5 {[%clk 0:00:38]}  Kg3 {[%clk 0:01:12]} 45. f4 {[%clk 0:00:36]}  h3 {[%clk 0:01:12]} 46. f5 {[%clk 0:00:36]}  Kg4 {[%clk 0:01:13]} 47. Bf4 {[%clk 0:00:36]}  Kh5 {[%clk 0:01:13]} 48. Ke5 {[%clk 0:00:36]}  Kg4 {[%clk 0:01:11]} 49. f6 {[%clk 0:00:35]}  h2 {[%clk 0:01:12]} 50. Bxh2 {[%clk 0:00:35]}  Kg5 {[%clk 0:01:12]} 51. f7 {[%clk 0:00:34]}  Kg6 {[%clk 0:01:13]} 52. f8=Q {[%clk 0:00:34]}  b4 {[%clk 0:01:14]} 53. Qf6+ {[%clk 0:00:33]}  Kh7 {[%clk 0:01:15]} 54. Ke6 {[%clk 0:00:27]}  b3 {[%clk 0:01:15]} 55. Qg5 {[%clk 0:00:23]}  Kh8 {[%clk 0:01:15]} 56. Kf7 {[%clk 0:00:22]}  Kh7 {[%clk 0:01:15]} 57. Qh5# {[%clk 0:00:22]} 1-0


[Site "https://www.chess.com"]

[Event "Titled Tuesday Blitz May 9 Early 2023"]
[White "Gontcharov, Vladislav"]
[Black "Mayaud, Raphael"]
[WhiteFideId "4123492"]
[BlackFideId "627151"]
[WhiteElo "2420"]
[BlackElo "2191"]
[Result "1-0"]
[Round "01"]
[TimeControl "180+2"]
[Date "2023.05.09"]
[WhiteClock "0:00:31"]
[BlackClock "0:00:04"]

1. e4 {[%clk 0:02:50]}  d5 {[%clk 0:02:58]} 2. exd5 {[%clk 0:02:49]}  Qxd5 {[%clk 0:02:58]} 3. Nc3 {[%clk 0:02:50]}  Qa5 {[%clk 0:02:58]} 4. d4 {[%clk 0:02:48]}  c6 {[%clk 0:02:58]} 5. Bc4 {[%clk 0:02:47]}  Nf6 {[%clk 0:02:58]} 6. Nf3 {[%clk 0:02:41]}  Bf5 {[%clk 0:02:58]} 7. Qe2 {[%clk 0:02:23]}  e6 {[%clk 0:02:57]} 8. Bd2 {[%clk 0:02:11]}  Bb4 {[%clk 0:02:56]} 9. O-O-O {[%clk 0:02:09]}  Nbd7 {[%clk 0:02:55]} 10. Kb1 {[%clk 0:02:04]}  Bg4 {[%clk 0:02:06]} 11. h3 {[%clk 0:02:02]}  Bxf3 {[%clk 0:02:02]} 12. Qxf3 {[%clk 0:02:02]}  Qf5 {[%clk 0:01:25]} 13. Qe2 {[%clk 0:01:52]}  O-O-O {[%clk 0:01:21]} 14. g4 {[%clk 0:01:50]}  Qa5 {[%clk 0:01:13]} 15. a3 {[%clk 0:01:49]}  Bxc3 {[%clk 0:01:13]} 16. Bxc3 {[%clk 0:01:49]}  Qc7 {[%clk 0:01:13]} 17. Bd2 {[%clk 0:01:43]}  Nb6 {[%clk 0:01:11]} 18. Bb3 {[%clk 0:01:42]}  Rxd4 {[%clk 0:01:06]} 19. Bc3 {[%clk 0:01:38]}  Rxd1+ {[%clk 0:01:06]} 20. Rxd1 {[%clk 0:01:38]}  Rd8 {[%clk 0:01:03]} 21. Rxd8+ {[%clk 0:01:33]}  Qxd8 {[%clk 0:01:03]} 22. g5 {[%clk 0:01:32]}  Ne8 {[%clk 0:01:03]} 23. h4 {[%clk 0:01:31]}  Nd5 {[%clk 0:01:01]} 24. Bd4 {[%clk 0:01:30]}  Nb6 {[%clk 0:00:38]} 25. Qe3 {[%clk 0:01:27]}  g6 {[%clk 0:00:31]} 26. a4 {[%clk 0:01:21]}  Nd6 {[%clk 0:00:27]} 27. Bf6 {[%clk 0:01:19]}  Qd7 {[%clk 0:00:25]} 28. Qc5 {[%clk 0:01:17]}  Ne8 {[%clk 0:00:17]} 29. Qf8 {[%clk 0:01:16]}  Kc7 {[%clk 0:00:17]} 30. Be5+ {[%clk 0:01:16]}  Kd8 {[%clk 0:00:17]} 31. a5 {[%clk 0:01:04]}  Nd5 {[%clk 0:00:17]} 32. c3 {[%clk 0:00:56]}  Qe7 {[%clk 0:00:17]} 33. Qh8 {[%clk 0:00:55]}  Qc5 {[%clk 0:00:15]} 34. Bd4 {[%clk 0:00:49]}  Qxa5 {[%clk 0:00:10]} 35. Qxh7 {[%clk 0:00:49]}  Qb5 {[%clk 0:00:11]} 36. Bxd5 {[%clk 0:00:42]}  Qxd5 {[%clk 0:00:10]} 37. Qxf7 {[%clk 0:00:42]}  Qf5+ {[%clk 0:00:11]} 38. Qxf5 {[%clk 0:00:41]}  exf5 {[%clk 0:00:12]} 39. Kc2 {[%clk 0:00:40]}  Kd7 {[%clk 0:00:12]} 40. Bxa7 {[%clk 0:00:40]}  Ke6 {[%clk 0:00:11]} 41. Kd3 {[%clk 0:00:39]}  Nd6 {[%clk 0:00:11]} 42. f3 {[%clk 0:00:37]}  Nf7 {[%clk 0:00:10]} 43. Bb8 {[%clk 0:00:36]}  Nd8 {[%clk 0:00:08]} 44. Kd4 {[%clk 0:00:33]}  b6 {[%clk 0:00:08]} 45. Bc7 {[%clk 0:00:33]}  c5+ {[%clk 0:00:08]} 46. Kc4 {[%clk 0:00:33]}  Nb7 {[%clk 0:00:07]} 47. Kb5 {[%clk 0:00:33]}  Kd7 {[%clk 0:00:04]} 48. Kxb6 {[%clk 0:00:31]} 1-0


[Site "https://www.chess.com"]

[Event "Titled Tuesday Blitz May 9 Early 2023"]
[White "Yaniuk, Volodymyr"]
[Black "Goldin, Roman"]
[WhiteFideId "14133083"]
[BlackFideId "2803860"]
[WhiteElo "2141"]
[BlackElo "2312"]
[Result "1-0"]
[Round "01"]
[TimeControl "180+2"]
[Date "2023.05.09"]
[WhiteClock "0:01:28"]
[BlackClock "0:00:00"]

1. d4 {[%clk 0:02:58]}  Nf6 {[%clk 0:02:59]} 2. c4 {[%clk 0:02:59]}  Nc6 {[%clk 0:02:58]} 3. Nf3 {[%clk 0:02:56]}  e6 {[%clk 0:02:58]} 4. a3 {[%clk 0:02:55]}  d5 {[%clk 0:02:56]} 5. Nc3 {[%clk 0:02:52]}  g6 {[%clk 0:02:56]} 6. Bg5 {[%clk 0:02:50]}  Bg7 {[%clk 0:02:56]} 7. e3 {[%clk 0:02:45]}  O-O {[%clk 0:02:56]} 8. Ne5 {[%clk 0:02:40]}  h6 {[%clk 0:02:45]} 9. Nxc6 {[%clk 0:02:38]}  bxc6 {[%clk 0:02:44]} 10. Bh4 {[%clk 0:02:34]}  c5 {[%clk 0:02:10]} 11. cxd5 {[%clk 0:02:28]}  cxd4 {[%clk 0:02:00]} 12. exd4 {[%clk 0:02:20]}  g5 {[%clk 0:01:56]} 13. Bg3 {[%clk 0:02:16]}  Nxd5 {[%clk 0:01:57]} 14. Be2 {[%clk 0:02:12]}  Bb7 {[%clk 0:01:51]} 15. O-O {[%clk 0:02:11]}  c5 {[%clk 0:01:43]} 16. dxc5 {[%clk 0:02:06]}  Nxc3 {[%clk 0:01:42]} 17. bxc3 {[%clk 0:02:04]}  Rc8 {[%clk 0:00:55]} 18. Rb1 {[%clk 0:01:54]}  Ba8 {[%clk 0:00:27]} 19. Bd6 {[%clk 0:01:49]}  Re8 {[%clk 0:00:26]} 20. Bb5 {[%clk 0:01:47]}  Bc6 {[%clk 0:00:27]} 21. Bxc6 {[%clk 0:01:45]}  Rxc6 {[%clk 0:00:27]} 22. Rb7 {[%clk 0:01:42]}  Qa8 {[%clk 0:00:19]} 23. Rd7 {[%clk 0:01:32]}  a5 {[%clk 0:00:13]} 24. Qf3 {[%clk 0:01:29]}  f5 {[%clk 0:00:00]} 25. Qh5 {[%clk 0:01:28]} 1-0


[Site "https://www.chess.com"]

[Event "Titled Tuesday Blitz May 9 Early 2023"]
[White "Akash G"]
[Black "Alhadad, Mahmoud"]
[WhiteFideId "5040299"]
[BlackFideId "11501863"]
[WhiteElo "2395"]
[BlackElo "1955"]
[Result "1-0"]
[Round "01"]
[TimeControl "180+2"]
[Date "2023.05.09"]
[WhiteClock "0:00:54"]
[BlackClock "0:00:00"]

1. e4 {[%clk 0:03:00]}  d5 {[%clk 0:02:59]} 2. exd5 {[%clk 0:03:00]}  Nf6 {[%clk 0:02:59]} 3. d4 {[%clk 0:03:00]}  Bg4 {[%clk 0:02:59]} 4. Be2 {[%clk 0:02:58]}  Bxe2 {[%clk 0:02:59]} 5. Qxe2 {[%clk 0:02:57]}  Qxd5 {[%clk 0:03:00]} 6. Nf3 {[%clk 0:02:57]}  Nc6 {[%clk 0:03:00]} 7. O-O {[%clk 0:02:54]}  O-O-O {[%clk 0:02:59]} 8. Be3 {[%clk 0:02:46]}  e6 {[%clk 0:02:49]} 9. c4 {[%clk 0:02:38]}  Qh5 {[%clk 0:02:49]} 10. Nc3 {[%clk 0:02:35]}  Bd6 {[%clk 0:02:43]} 11. h3 {[%clk 0:02:32]}  e5 {[%clk 0:02:35]} 12. d5 {[%clk 0:02:22]}  Ne7 {[%clk 0:02:00]} 13. Nb5 {[%clk 0:01:41]}  a6 {[%clk 0:01:34]} 14. Nxd6+ {[%clk 0:01:38]}  Rxd6 {[%clk 0:01:32]} 15. Bc5 {[%clk 0:01:32]}  e4 {[%clk 0:01:15]} 16. Bxd6 {[%clk 0:01:22]}  exf3 {[%clk 0:01:03]} 17. Qxe7 {[%clk 0:01:23]}  cxd6 {[%clk 0:01:03]} 18. Qxd6 {[%clk 0:01:17]}  fxg2 {[%clk 0:01:03]} 19. Kxg2 {[%clk 0:01:16]}  Ne4 {[%clk 0:00:16]} 20. Qf4 {[%clk 0:01:14]}  Qg6+ {[%clk 0:00:16]} 21. Qg4+ {[%clk 0:01:13]}  f5 {[%clk 0:00:16]} 22. Qxg6 {[%clk 0:01:13]}  hxg6 {[%clk 0:00:16]} 23. b3 {[%clk 0:01:09]}  Kd7 {[%clk 0:00:15]} 24. Rae1 {[%clk 0:01:05]}  Ng5 {[%clk 0:00:15]} 25. Rh1 {[%clk 0:01:03]}  Kd6 {[%clk 0:00:11]} 26. h4 {[%clk 0:01:01]}  Ne4 {[%clk 0:00:11]} 27. f3 {[%clk 0:01:02]}  Nc3 {[%clk 0:00:06]} 28. Re6+ {[%clk 0:01:01]}  Kc5 {[%clk 0:00:06]} 29. Rxg6 {[%clk 0:01:00]}  Re8 {[%clk 0:00:04]} 30. Rxg7 {[%clk 0:00:58]}  f4 {[%clk 0:00:04]} 31. h5 {[%clk 0:00:56]}  Re2+ {[%clk 0:00:03]} 32. Kh3 {[%clk 0:00:56]}  Rf2 {[%clk 0:00:00]} 33. h6 {[%clk 0:00:54]} 1-0


[Site "https://www.chess.com"]

[Event "Titled Tuesday Blitz May 9 Early 2023"]
[White "Alahakoon, Isuru"]
[Black "Bruedigam, Martin"]
[WhiteFideId "9900993"]
[BlackFideId "24608033"]
[WhiteElo "1953"]
[BlackElo "2331"]
[Result "1-0"]
[Round "01"]
[TimeControl "180+2"]
[Date "2023.05.09"]
[WhiteClock "0:00:12"]
[BlackClock "0:00:04"]

1. Nf3 {[%clk 0:02:59]}  d5 {[%clk 0:02:59]} 2. e3 {[%clk 0:02:57]}  c5 {[%clk 0:02:57]} 3. b3 {[%clk 0:02:57]}  Nc6 {[%clk 0:02:55]} 4. Bb2 {[%clk 0:02:57]}  Nf6 {[%clk 0:02:51]} 5. Bb5 {[%clk 0:02:57]}  Bd7 {[%clk 0:02:47]} 6. c4 {[%clk 0:02:54]}  a6 {[%clk 0:02:45]} 7. Bxc6 {[%clk 0:02:48]}  Bxc6 {[%clk 0:02:44]} 8. cxd5 {[%clk 0:02:45]}  Nxd5 {[%clk 0:02:41]} 9. d4 {[%clk 0:02:40]}  e6 {[%clk 0:02:38]} 10. O-O {[%clk 0:02:32]}  Nf6 {[%clk 0:02:31]} 11. Ne5 {[%clk 0:02:29]}  Rc8 {[%clk 0:02:21]} 12. Nd2 {[%clk 0:02:19]}  cxd4 {[%clk 0:02:17]} 13. Nxc6 {[%clk 0:02:11]}  Rxc6 {[%clk 0:02:14]} 14. Bxd4 {[%clk 0:02:11]}  Be7 {[%clk 0:02:05]} 15. Nc4 {[%clk 0:02:11]}  O-O {[%clk 0:02:04]} 16. Ne5 {[%clk 0:02:08]}  Rc8 {[%clk 0:01:59]} 17. Qf3 {[%clk 0:02:07]}  Nd5 {[%clk 0:01:53]} 18. Rfd1 {[%clk 0:02:03]}  Qc7 {[%clk 0:01:39]} 19. e4 {[%clk 0:01:54]}  Nb4 {[%clk 0:01:21]} 20. Bb2 {[%clk 0:01:17]}  Bf6 {[%clk 0:00:57]} 21. a3 {[%clk 0:01:08]}  Bxe5 {[%clk 0:00:48]} 22. Bxe5 {[%clk 0:01:06]}  Qxe5 {[%clk 0:00:47]} 23. axb4 {[%clk 0:01:07]}  Rfd8 {[%clk 0:00:41]} 24. g3 {[%clk 0:01:05]}  g6 {[%clk 0:00:37]} 25. Qe2 {[%clk 0:00:57]}  h5 {[%clk 0:00:30]} 26. Rac1 {[%clk 0:00:48]}  Rxc1 {[%clk 0:00:26]} 27. Rxc1 {[%clk 0:00:47]}  Kg7 {[%clk 0:00:15]} 28. Rc5 {[%clk 0:00:47]}  Qa1+ {[%clk 0:00:13]} 29. Kg2 {[%clk 0:00:46]}  Rd1 {[%clk 0:00:14]} 30. e5 {[%clk 0:00:37]}  Rg1+ {[%clk 0:00:13]} 31. Kh3 {[%clk 0:00:36]}  Qd4 {[%clk 0:00:13]} 32. Qf3 {[%clk 0:00:28]}  Rf1 {[%clk 0:00:10]} 33. Qf6+ {[%clk 0:00:27]}  Kh6 {[%clk 0:00:07]} 34. Rc8 {[%clk 0:00:21]}  Qg4+ {[%clk 0:00:06]} 35. Kg2 {[%clk 0:00:21]}  Qe4+ {[%clk 0:00:04]} 36. Kh3 {[%clk 0:00:18]}  Qg4+ {[%clk 0:00:04]} 37. Kg2 {[%clk 0:00:18]}  Qe4+ {[%clk 0:00:05]} 38. Kxf1 {[%clk 0:00:18]}  Qh1+ {[%clk 0:00:05]} 39. Ke2 {[%clk 0:00:18]}  Qe4+ {[%clk 0:00:06]} 40. Kf1 {[%clk 0:00:16]}  Qh1+ {[%clk 0:00:06]} 41. Ke2 {[%clk 0:00:16]}  Qe4+ {[%clk 0:00:07]} 42. Kd2 {[%clk 0:00:16]}  Qd4+ {[%clk 0:00:06]} 43. Kc2 {[%clk 0:00:15]}  Qe4+ {[%clk 0:00:05]} 44. Kb2 {[%clk 0:00:15]}  Qd4+ {[%clk 0:00:05]} 45. Rc3 {[%clk 0:00:14]}  Qd2+ {[%clk 0:00:05]} 46. Rc2 {[%clk 0:00:15]}  Qd4+ {[%clk 0:00:06]} 47. Ka2 {[%clk 0:00:15]}  Qd7 {[%clk 0:00:04]} 48. h4 {[%clk 0:00:12]}  b6 {[%clk 0:00:04]} 49. Qh8# {[%clk 0:00:12]} 1-0


[Site "https://www.chess.com"]

[Event "Titled Tuesday Blitz May 9 Early 2023"]
[White "Maurizzi, Marc`Andria"]
[Black "Rian, Kapriaga"]
[WhiteFideId "36083534"]
[BlackFideId "7103263"]
[WhiteElo "2421"]
[BlackElo "2286"]
[Result "1/2-1/2"]
[Round "01"]
[TimeControl "180+2"]
[Date "2023.05.09"]
[WhiteClock "0:01:00"]
[BlackClock "0:00:10"]

1. e4 {[%clk 0:03:00]}  c6 {[%clk 0:02:58]} 2. d4 {[%clk 0:02:59]}  d5 {[%clk 0:02:58]} 3. Nc3 {[%clk 0:03:00]}  dxe4 {[%clk 0:02:55]} 4. Nxe4 {[%clk 0:03:01]}  Bf5 {[%clk 0:02:54]} 5. Ng3 {[%clk 0:03:00]}  Bg6 {[%clk 0:02:54]} 6. h4 {[%clk 0:03:01]}  h6 {[%clk 0:02:53]} 7. Bd3 {[%clk 0:03:01]}  Bxd3 {[%clk 0:02:52]} 8. Qxd3 {[%clk 0:03:01]}  e6 {[%clk 0:02:52]} 9. N1e2 {[%clk 0:03:01]}  Nf6 {[%clk 0:02:50]} 10. Bd2 {[%clk 0:03:01]}  Nbd7 {[%clk 0:02:49]} 11. O-O-O {[%clk 0:03:02]}  Bd6 {[%clk 0:02:49]} 12. Ne4 {[%clk 0:03:01]}  Nxe4 {[%clk 0:02:48]} 13. Qxe4 {[%clk 0:03:02]}  Qc7 {[%clk 0:02:47]} 14. g4 {[%clk 0:03:00]}  O-O-O {[%clk 0:02:44]} 15. Kb1 {[%clk 0:02:57]}  h5 {[%clk 0:02:36]} 16. g5 {[%clk 0:02:57]}  g6 {[%clk 0:02:33]} 17. Rh3 {[%clk 0:02:53]}  a6 {[%clk 0:02:25]} 18. a3 {[%clk 0:02:50]}  Kb8 {[%clk 0:02:25]} 19. Rf3 {[%clk 0:02:42]}  Rhf8 {[%clk 0:02:20]} 20. Bf4 {[%clk 0:02:37]}  Nb6 {[%clk 0:02:12]} 21. Bxd6 {[%clk 0:02:35]}  Qxd6 {[%clk 0:02:11]} 22. Re1 {[%clk 0:02:26]}  Rd7 {[%clk 0:02:03]} 23. c3 {[%clk 0:02:24]}  Nd5 {[%clk 0:01:52]} 24. Nf4 {[%clk 0:02:21]}  Rc8 {[%clk 0:01:36]} 25. Nd3 {[%clk 0:02:18]}  Rdc7 {[%clk 0:01:19]} 26. c4 {[%clk 0:02:17]}  Ne7 {[%clk 0:01:07]} 27. c5 {[%clk 0:02:15]}  Qd5 {[%clk 0:01:04]} 28. Rxf7 {[%clk 0:02:15]}  Nf5 {[%clk 0:00:59]} 29. Qxd5 {[%clk 0:01:39]}  exd5 {[%clk 0:00:53]} 30. Rf6 {[%clk 0:01:39]}  Rg7 {[%clk 0:00:42]} 31. Nf4 {[%clk 0:01:33]}  Nxh4 {[%clk 0:00:28]} 32. Ree6 {[%clk 0:01:32]}  Rcg8 {[%clk 0:00:22]} 33. Ka2 {[%clk 0:01:25]}  Nf3 {[%clk 0:00:19]} 34. Rxg6 {[%clk 0:01:23]}  Rxg6 {[%clk 0:00:19]} 35. Rxg6 {[%clk 0:01:24]}  Rxg6 {[%clk 0:00:19]} 36. Nxg6 {[%clk 0:01:25]}  Nxg5 {[%clk 0:00:19]} 37. f4 {[%clk 0:01:23]}  Nf7 {[%clk 0:00:16]} 38. Kb1 {[%clk 0:01:22]}  Nh6 {[%clk 0:00:15]} 39. Kc2 {[%clk 0:01:22]}  Nf5 {[%clk 0:00:15]} 40. Kd3 {[%clk 0:01:21]}  Kc8 {[%clk 0:00:16]} 41. Ne5 {[%clk 0:01:19]}  Kd8 {[%clk 0:00:14]} 42. Nf3 {[%clk 0:01:19]}  Ke7 {[%clk 0:00:14]} 43. Ke2 {[%clk 0:01:20]}  Kf6 {[%clk 0:00:14]} 44. Kf2 {[%clk 0:01:21]}  Ke6 {[%clk 0:00:12]} 45. Kg2 {[%clk 0:01:21]}  Kf6 {[%clk 0:00:12]} 46. Kh3 {[%clk 0:01:22]}  Ke6 {[%clk 0:00:12]} 47. b4 {[%clk 0:01:22]}  Kf6 {[%clk 0:00:12]} 48. a4 {[%clk 0:01:21]}  Ke7 {[%clk 0:00:12]} 49. Kg2 {[%clk 0:01:17]}  Kd7 {[%clk 0:00:11]} 50. Kf2 {[%clk 0:01:18]}  Kc7 {[%clk 0:00:11]} 51. Ke2 {[%clk 0:01:19]}  b6 {[%clk 0:00:11]} 52. a5 {[%clk 0:01:11]}  bxa5 {[%clk 0:00:10]} 53. bxa5 {[%clk 0:01:11]}  Kd7 {[%clk 0:00:09]} 54. Kd3 {[%clk 0:01:12]}  Kc7 {[%clk 0:00:10]} 55. Nd2 {[%clk 0:01:10]}  Kd7 {[%clk 0:00:10]} 56. Nf3 {[%clk 0:01:07]}  Kc7 {[%clk 0:00:10]} 57. Ne5 {[%clk 0:01:08]}  Kb7 {[%clk 0:00:10]} 58. Nf3 {[%clk 0:01:00]}  Kc7 {[%clk 0:00:10]} 1/2-1/2


[Site "https://www.chess.com"]

[Event "Titled Tuesday Blitz May 9 Early 2023"]
[White "Barbot, Pierre"]
[Black "Piesik, Piotr"]
[WhiteFideId "663727"]
[BlackFideId "1136194"]
[WhiteElo "2431"]
[BlackElo "2299"]
[Result "0-1"]
[Round "01"]
[TimeControl "180+2"]
[Date "2023.05.09"]
[WhiteClock "0:00:00"]
[BlackClock "0:01:16"]

1. d4 {[%clk 0:02:57]}  c5 {[%clk 0:02:59]} 2. d5 {[%clk 0:02:56]}  e5 {[%clk 0:02:59]} 3. e4 {[%clk 0:02:44]}  d6 {[%clk 0:02:59]} 4. Nc3 {[%clk 0:02:43]}  Be7 {[%clk 0:02:59]} 5. g3 {[%clk 0:02:27]}  Bg5 {[%clk 0:02:58]} 6. Bg2 {[%clk 0:02:25]}  Bxc1 {[%clk 0:02:58]} 7. Qxc1 {[%clk 0:02:25]}  Ne7 {[%clk 0:02:59]} 8. Nge2 {[%clk 0:02:22]}  O-O {[%clk 0:02:58]} 9. O-O {[%clk 0:02:21]}  f5 {[%clk 0:02:58]} 10. f4 {[%clk 0:02:04]}  Nd7 {[%clk 0:02:57]} 11. fxe5 {[%clk 0:01:38]}  Nxe5 {[%clk 0:02:56]} 12. Nf4 {[%clk 0:01:39]}  Rf6 {[%clk 0:02:46]} 13. Ne6 {[%clk 0:01:27]}  Bxe6 {[%clk 0:02:24]} 14. dxe6 {[%clk 0:01:28]}  Rxe6 {[%clk 0:02:18]} 15. exf5 {[%clk 0:01:26]}  Rf6 {[%clk 0:02:18]} 16. Nd5 {[%clk 0:01:09]}  Nxd5 {[%clk 0:02:10]} 17. Bxd5+ {[%clk 0:01:10]}  Kh8 {[%clk 0:02:10]} 18. c4 {[%clk 0:01:02]}  Qd7 {[%clk 0:02:04]} 19. Be6 {[%clk 0:00:30]}  Qc6 {[%clk 0:02:02]} 20. Bd5 {[%clk 0:00:30]}  Qd7 {[%clk 0:01:56]} 21. Be6 {[%clk 0:00:30]}  Qe7 {[%clk 0:01:48]} 22. Qc2 {[%clk 0:00:23]}  Raf8 {[%clk 0:01:42]} 23. Rf4 {[%clk 0:00:19]}  g5 {[%clk 0:01:26]} 24. Rff1 {[%clk 0:00:04]}  g4 {[%clk 0:01:23]} 25. Rf2 {[%clk 0:00:03]}  Nf3+ {[%clk 0:01:21]} 26. Kh1 {[%clk 0:00:03]}  Nd4 {[%clk 0:01:20]} 27. Qe4 {[%clk 0:00:00]}  Rxe6 {[%clk 0:01:16]} 0-1


[Site "https://www.chess.com"]